[Event "*** Titled Tuesday Blitz"]
[Site "Chess.com"]
[Date "2020.04.14"]
[Round "1"]
[White "ViIIagra"]
[Black "MathiasWomacka"]
[Result "1-0"]
[WhiteElo "2808"]
[BlackElo "2424"]
[TimeControl "180+1"]
[EndTime "10:07:42 PDT"]
[Termination "ViIIagra won by resignation"]

1. e4 {[%clk 0:03:00.9]} 1... c5 {[%clk 0:02:59.1]} 2. Nc3 {[%clk 0:03:00.5]}
2... Nc6 {[%clk 0:02:55.7]} 3. Bb5 {[%clk 0:03:00.5]} 3... Nd4 {[%clk
0:02:55.5]} 4. Nf3 {[%clk 0:02:51.5]} 4... Nxb5 {[%clk 0:02:54.7]} 5. Nxb5
{[%clk 0:02:51.2]} 5... d6 {[%clk 0:02:54]} 6. O-O {[%clk 0:02:50.7]} 6... Nf6
{[%clk 0:02:53.2]} 7. d4 {[%clk 0:02:50.1]} 7... a6 {[%clk 0:02:51.4]} 8. Nc3
{[%clk 0:02:48.8]} 8... cxd4 {[%clk 0:02:51.4]} 9. Qxd4 {[%clk 0:02:22.6]} 9...
e5 {[%clk 0:02:51.2]} 10. Qd3 {[%clk 0:02:22.7]} 10... h6 {[%clk 0:02:51]} 11.
Nd2 {[%clk 0:02:12.8]} 11... Be6 {[%clk 0:02:48.3]} 12. Nc4 {[%clk 0:02:11.3]}
12... Rc8 {[%clk 0:02:47.2]} 13. Ne3 {[%clk 0:02:11.4]} 13... Be7 {[%clk
0:02:44.4]} 14. Bd2 {[%clk 0:02:00.8]} 14... O-O {[%clk 0:02:43.1]} 15. Rac1
{[%clk 0:02:01.4]} 15... Qb6 {[%clk 0:02:30.8]} 16. b3 {[%clk 0:01:58.6]} 16...
Qd4 {[%clk 0:02:30]} 17. Ncd5 {[%clk 0:01:31.4]} 17... Bxd5 {[%clk 0:02:06.6]}
18. exd5 {[%clk 0:01:31.1]} 18... Qxd3 {[%clk 0:02:06]} 19. cxd3 {[%clk
0:01:32]} 19... g6 {[%clk 0:02:01.7]} 20. Bb4 {[%clk 0:01:32]} 20... Rfd8 {[%clk
0:01:34.1]} 21. a4 {[%clk 0:01:31.8]} 21... h5 {[%clk 0:01:32.2]} 22. Rc4 {[%clk
0:01:10.5]} 22... Rxc4 {[%clk 0:01:28.9]} 23. bxc4 {[%clk 0:01:06.7]} 23... e4
{[%clk 0:01:23.7]} 24. d4 {[%clk 0:01:03.4]} 24... Ng4 {[%clk 0:01:20.5]} 25. h3
{[%clk 0:00:55.4]} 25... Nxe3 {[%clk 0:01:17.1]} 26. fxe3 {[%clk 0:00:56.3]}
26... f5 {[%clk 0:01:11.8]} 27. Rc1 {[%clk 0:00:54.9]} 27... Kf7 {[%clk
0:01:00.3]} 28. Kf2 {[%clk 0:00:55]} 28... h4 {[%clk 0:00:59.4]} 29. Ba5 {[%clk
0:00:55.1]} 29... Rd7 {[%clk 0:00:52.6]} 30. Ke2 {[%clk 0:00:55.2]} 30... g5
{[%clk 0:00:52.6]} 31. Rb1 {[%clk 0:00:51.2]} 31... Kg6 {[%clk 0:00:52.1]} 32.
Bb6 {[%clk 0:00:45.7]} 32... f4 {[%clk 0:00:51.8]} 33. Rd1 {[%clk 0:00:45.6]}
33... Bd8 {[%clk 0:00:44.5]} 34. a5 {[%clk 0:00:45.9]} 34... Kf5 {[%clk
0:00:31.9]} 35. c5 {[%clk 0:00:45.9]} 35... dxc5 {[%clk 0:00:28.1]} 36. dxc5
{[%clk 0:00:46.8]} 36... Ke5 {[%clk 0:00:25.7]} 37. d6 {[%clk 0:00:25]} 37...
Bf6 {[%clk 0:00:21.9]} 38. Bc7 {[%clk 0:00:23.3]} 38... Kf5 {[%clk 0:00:20.5]}
39. Rb1 {[%clk 0:00:23]} 39... fxe3 {[%clk 0:00:13]} 40. Kxe3 {[%clk 0:00:23.9]}
40... g4 {[%clk 0:00:12]} 41. Rxb7 {[%clk 0:00:24]} 41... Bg5+ {[%clk
0:00:11.4]} 42. Ke2 {[%clk 0:00:24.5]} 42... gxh3 {[%clk 0:00:11.3]} 43. gxh3
{[%clk 0:00:25.4]} 43... Bf4 {[%clk 0:00:09.3]} 44. c6 {[%clk 0:00:24.9]} 44...
Rg7 {[%clk 0:00:09.1]} 45. d7 {[%clk 0:00:21.4]} 45... Rg2+ {[%clk 0:00:09]} 46.
Kd1 {[%clk 0:00:22]} 46... e3 {[%clk 0:00:08.2]} 47. Bxf4 {[%clk 0:00:20.5]} 1-0

[Event "*** Titled Tuesday Blitz"]
[Site "Chess.com"]
[Date "2020.04.14"]
[Round "1"]
[White "S2PAc"]
[Black "SanchezKelvin"]
[Result "0-1"]
[WhiteElo "2758"]
[BlackElo "2418"]
[TimeControl "180+1"]
[EndTime "10:07:42 PDT"]
[Termination "SanchezKelvin won by resignation"]

1. d4 {[%clk 0:03:00.9]} 1... Nf6 {[%clk 0:02:54]} 2. g3 {[%clk 0:02:59.8]} 2...
c5 {[%clk 0:02:52.2]} 3. d5 {[%clk 0:02:59]} 3... e6 {[%clk 0:02:51.9]} 4. c4
{[%clk 0:02:59.5]} 4... exd5 {[%clk 0:02:51.6]} 5. cxd5 {[%clk 0:03:00.4]} 5...
d6 {[%clk 0:02:52.5]} 6. Nc3 {[%clk 0:03:00.6]} 6... g6 {[%clk 0:02:53.1]} 7.
Bg2 {[%clk 0:03:01.3]} 7... Bg7 {[%clk 0:02:54]} 8. Nf3 {[%clk 0:03:01.8]} 8...
O-O {[%clk 0:02:54.9]} 9. O-O {[%clk 0:03:02.2]} 9... Re8 {[%clk 0:02:55.4]} 10.
Bf4 {[%clk 0:02:58.9]} 10... Ne4 {[%clk 0:02:54.9]} 11. Nxe4 {[%clk 0:02:58.2]}
11... Rxe4 {[%clk 0:02:55.8]} 12. Nd2 {[%clk 0:02:58.3]} 12... Rb4 {[%clk
0:02:55.6]} 13. a3 {[%clk 0:02:53.2]} 13... Rxf4 {[%clk 0:02:54.1]} 14. gxf4
{[%clk 0:02:54]} 14... Bxb2 {[%clk 0:02:55]} 15. Rb1 {[%clk 0:02:47.8]} 15...
Bxa3 {[%clk 0:02:52]} 16. e4 {[%clk 0:02:46.8]} 16... Bb4 {[%clk 0:02:42.4]} 17.
e5 {[%clk 0:02:46.6]} 17... Nd7 {[%clk 0:02:36]} 18. Nc4 {[%clk 0:02:25.2]}
18... dxe5 {[%clk 0:02:13.2]} 19. fxe5 {[%clk 0:01:53.4]} 19... b5 {[%clk
0:02:07.1]} 20. d6 {[%clk 0:01:21.2]} 20... bxc4 {[%clk 0:01:42.2]} 21. Bxa8
{[%clk 0:01:20.5]} 21... Nxe5 {[%clk 0:01:40.1]} 22. Bg2 {[%clk 0:00:58.6]}
22... Bf5 {[%clk 0:01:19.3]} 23. Qd5 {[%clk 0:00:54.7]} 23... Qf6 {[%clk
0:00:17.5]} 24. Rbd1 {[%clk 0:00:40.6]} 24... Nd7 {[%clk 0:00:15.3]} 25. Qxc4
{[%clk 0:00:31.9]} 25... a5 {[%clk 0:00:14.7]} 26. Qb5 {[%clk 0:00:16.8]} 26...
Kg7 {[%clk 0:00:13.1]} 27. Rfe1 {[%clk 0:00:14]} 27... Bxe1 {[%clk 0:00:12.2]}
28. Rxe1 {[%clk 0:00:14.9]} 28... Qc3 {[%clk 0:00:11.2]} 29. Rd1 {[%clk
0:00:11.4]} 29... Ne5 {[%clk 0:00:10.9]} 30. h3 {[%clk 0:00:05]} 30... Nf3+
{[%clk 0:00:10.8]} 31. Bxf3 {[%clk 0:00:04.3]} 31... Qxf3 {[%clk 0:00:10.5]} 32.
Re1 {[%clk 0:00:02.4]} 32... Bxh3 {[%clk 0:00:10.5]} 33. Qf1 {[%clk 0:00:02.7]}
33... Bxf1 {[%clk 0:00:10]} 34. Rxf1 {[%clk 0:00:03.6]} 34... Qg4+ {[%clk
0:00:10.7]} 0-1

[Event "*** Titled Tuesday Blitz"]
[Site "Chess.com"]
[Date "2020.04.14"]
[Round "1"]
[White "Angel_Hranitel_37"]
[Black "maciek_92"]
[Result "1-0"]
[WhiteElo "2360"]
[BlackElo "2678"]
[TimeControl "180+1"]
[EndTime "10:07:42 PDT"]
[Termination "Angel_Hranitel_37 won by resignation"]

1. d4 {[%clk 0:03:00]} 1... f5 {[%clk 0:02:58.8]} 2. c4 {[%clk 0:02:58.7]} 2...
Nf6 {[%clk 0:02:58.8]} 3. g3 {[%clk 0:02:59.2]} 3... g6 {[%clk 0:02:59.3]} 4.
Bg2 {[%clk 0:02:58.3]} 4... Bg7 {[%clk 0:02:59.2]} 5. Nf3 {[%clk 0:02:57.2]}
5... O-O {[%clk 0:02:58.3]} 6. O-O {[%clk 0:02:57.5]} 6... d6 {[%clk 0:02:58.9]}
7. Nc3 {[%clk 0:02:57.5]} 7... Qe8 {[%clk 0:02:59.3]} 8. Re1 {[%clk 0:02:47.7]}
8... Qf7 {[%clk 0:02:48.7]} 9. e4 {[%clk 0:02:30.2]} 9... fxe4 {[%clk
0:02:49.6]} 10. Ng5 {[%clk 0:02:28.3]} 10... Qxc4 {[%clk 0:02:46.7]} 11. Ngxe4
{[%clk 0:02:28.6]} 11... Nxe4 {[%clk 0:02:42.7]} 12. Rxe4 {[%clk 0:02:28.9]}
12... Qf7 {[%clk 0:02:38.2]} 13. Rf4 {[%clk 0:02:28.6]} 13... Qe8 {[%clk
0:02:35.1]} 14. Qb3+ {[%clk 0:02:19.8]} 14... e6 {[%clk 0:02:32.5]} 15. Bxb7
{[%clk 0:02:06.2]} 15... Bxb7 {[%clk 0:02:31.8]} 16. Qxb7 {[%clk 0:02:07.1]}
16... Qc6 {[%clk 0:02:28.7]} 17. Rxf8+ {[%clk 0:02:04.9]} 17... Bxf8 {[%clk
0:02:29.6]} 18. Qb3 {[%clk 0:01:58.9]} 18... d5 {[%clk 0:02:26.7]} 19. Bf4
{[%clk 0:01:58.8]} 19... Qb6 {[%clk 0:02:11.4]} 20. Qxb6 {[%clk 0:01:54.7]}
20... cxb6 {[%clk 0:02:12.3]} 21. Nb5 {[%clk 0:01:52]} 21... Na6 {[%clk
0:02:09.3]} 22. a3 {[%clk 0:01:47.7]} 22... Rc8 {[%clk 0:02:04.5]} 23. Nxa7
{[%clk 0:01:39.8]} 23... Rc2 {[%clk 0:02:04.8]} 24. b4 {[%clk 0:01:39.9]} 24...
Bg7 {[%clk 0:01:56.2]} 25. Nb5 {[%clk 0:01:40.2]} 25... Kf7 {[%clk 0:01:50.3]}
26. Rc1 {[%clk 0:01:26.3]} 26... Rxc1+ {[%clk 0:01:50.2]} 27. Bxc1 {[%clk
0:01:27.2]} 27... Nb8 {[%clk 0:01:50.5]} 28. Bd2 {[%clk 0:01:20.8]} 28... Nc6
{[%clk 0:01:49.3]} 29. Bc3 {[%clk 0:01:21.3]} 29... Bf8 {[%clk 0:01:39.5]} 30.
Nc7 {[%clk 0:01:04.7]} 30... Bd6 {[%clk 0:01:34.7]} 31. Nb5 {[%clk 0:00:52.3]}
31... Bf8 {[%clk 0:01:33.3]} 32. Kf1 {[%clk 0:00:46.7]} 32... g5 {[%clk
0:01:32.8]} 33. Ke2 {[%clk 0:00:47.1]} 33... g4 {[%clk 0:01:33]} 34. f3 {[%clk
0:00:47.5]} 34... h5 {[%clk 0:01:33.5]} 35. fxg4 {[%clk 0:00:46.7]} 35... hxg4
{[%clk 0:01:33.1]} 36. Kf2 {[%clk 0:00:45]} 36... Kg6 {[%clk 0:01:31.3]} 37. Nc7
{[%clk 0:00:37.7]} 37... Kf5 {[%clk 0:01:31.6]} 38. b5 {[%clk 0:00:23.3]} 38...
Nb8 {[%clk 0:01:24.9]} 39. a4 {[%clk 0:00:21.9]} 39... Bg7 {[%clk 0:01:17.4]}
40. Ke3 {[%clk 0:00:20.8]} 40... Bh6+ {[%clk 0:01:17.1]} 41. Kd3 {[%clk
0:00:21]} 41... Nd7 {[%clk 0:01:08.9]} 42. a5 {[%clk 0:00:20.3]} 42... bxa5
{[%clk 0:01:09.8]} 43. Bxa5 {[%clk 0:00:21.2]} 43... e5 {[%clk 0:01:10.1]} 44.
Nxd5 {[%clk 0:00:16.7]} 44... e4+ {[%clk 0:01:10.5]} 45. Ke2 {[%clk 0:00:17.2]}
45... Ke6 {[%clk 0:01:10]} 46. Nb6 {[%clk 0:00:16.1]} 46... Nf6 {[%clk
0:01:08.5]} 47. Nc4 {[%clk 0:00:15]} 47... Nd5 {[%clk 0:01:07.2]} 48. b6 {[%clk
0:00:15]} 48... Ne7 {[%clk 0:00:59.8]} 49. b7 {[%clk 0:00:15.1]} 49... Nc6
{[%clk 0:01:00.3]} 50. Bc7 {[%clk 0:00:15.6]} 50... Nxd4+ {[%clk 0:00:59.3]} 51.
Kf1 {[%clk 0:00:16.2]} 51... Nc6 {[%clk 0:00:59.2]} 52. Na5 {[%clk 0:00:15.2]}
1-0

[Event "*** Titled Tuesday Blitz"]
[Site "Chess.com"]
[Date "2020.04.14"]
[Round "1"]
[White "profofchess"]
[Black "Gordima"]
[Result "0-1"]
[WhiteElo "2400"]
[BlackElo "2769"]
[TimeControl "180+1"]
[EndTime "10:07:43 PDT"]
[Termination "Gordima won on time"]

1. e4 {[%clk 0:03:00.9]} 1... e5 {[%clk 0:02:58.6]} 2. Nf3 {[%clk 0:03:00.7]}
2... Nc6 {[%clk 0:02:58.6]} 3. Nc3 {[%clk 0:03:00.8]} 3... Nf6 {[%clk 0:02:55]}
4. Bb5 {[%clk 0:03:01.1]} 4... Bb4 {[%clk 0:02:51.7]} 5. O-O {[%clk 0:02:59.5]}
5... O-O {[%clk 0:02:51.2]} 6. d3 {[%clk 0:02:59.4]} 6... d6 {[%clk 0:02:50.9]}
7. Ne2 {[%clk 0:02:57]} 7... Ne7 {[%clk 0:02:47.3]} 8. Ng3 {[%clk 0:02:56.5]}
8... Ng6 {[%clk 0:02:47.3]} 9. h3 {[%clk 0:02:56.2]} 9... h6 {[%clk 0:02:47.1]}
10. c3 {[%clk 0:02:56]} 10... Ba5 {[%clk 0:02:46.8]} 11. d4 {[%clk 0:02:50.6]}
11... c6 {[%clk 0:02:44.7]} 12. Bd3 {[%clk 0:02:50]} 12... Bb6 {[%clk
0:02:40.8]} 13. Re1 {[%clk 0:02:47.5]} 13... Re8 {[%clk 0:02:37.2]} 14. Qc2
{[%clk 0:02:31]} 14... Nh7 {[%clk 0:02:32.3]} 15. Be3 {[%clk 0:02:12.5]} 15...
Ng5 {[%clk 0:02:26.3]} 16. Nxg5 {[%clk 0:02:11.2]} 16... hxg5 {[%clk 0:02:27.2]}
17. Rad1 {[%clk 0:02:06.8]} 17... Nf4 {[%clk 0:02:21.7]} 18. Bf1 {[%clk
0:02:02.8]} 18... Qf6 {[%clk 0:02:18.2]} 19. Nf5 {[%clk 0:01:50.1]} 19... d5
{[%clk 0:01:38.3]} 20. dxe5 {[%clk 0:01:28.9]} 20... Rxe5 {[%clk 0:01:32]} 21.
Ng3 {[%clk 0:01:24.4]} 21... Qe7 {[%clk 0:01:20.4]} 22. Bd4 {[%clk 0:01:09.2]}
22... Bxd4 {[%clk 0:01:17]} 23. cxd4 {[%clk 0:01:10.1]} 23... Re6 {[%clk
0:01:16.4]} 24. Nf5 {[%clk 0:01:03.5]} 24... Qf6 {[%clk 0:00:47.1]} 25. e5
{[%clk 0:00:55.7]} 25... Qg6 {[%clk 0:00:46.3]} 26. g3 {[%clk 0:00:53]} 26...
Re8 {[%clk 0:00:46.2]} 27. g4 {[%clk 0:00:28.8]} 27... Be6 {[%clk 0:00:45.4]}
28. Qb1 {[%clk 0:00:17.2]} 28... Qh7 {[%clk 0:00:31.8]} 29. Kh2 {[%clk
0:00:15.8]} 29... Bxf5 {[%clk 0:00:15.3]} 30. Qxf5 {[%clk 0:00:13]} 30... Qh6
{[%clk 0:00:15.3]} 31. Re3 {[%clk 0:00:10.8]} 31... Re6 {[%clk 0:00:15.2]} 32.
Kg1 {[%clk 0:00:09.4]} 32... g6 {[%clk 0:00:14.1]} 33. Qc2 {[%clk 0:00:08.7]}
33... Kg7 {[%clk 0:00:14.3]} 34. a4 {[%clk 0:00:08]} 34... Qh8 {[%clk
0:00:13.2]} 35. a5 {[%clk 0:00:07.5]} 35... a6 {[%clk 0:00:11.5]} 36. Qb3 {[%clk
0:00:07.5]} 36... Qc8 {[%clk 0:00:10.4]} 37. Qb4 {[%clk 0:00:07]} 37... Qd7
{[%clk 0:00:09.1]} 38. Rb3 {[%clk 0:00:06.9]} 38... Re7 {[%clk 0:00:09.1]} 39.
Qc5 {[%clk 0:00:06.8]} 39... Rh8 {[%clk 0:00:09.1]} 40. Rc1 {[%clk 0:00:05.8]}
40... Qe6 {[%clk 0:00:08.4]} 41. Rcc3 {[%clk 0:00:04.7]} 41... Rh4 {[%clk
0:00:08.1]} 42. Rb6 {[%clk 0:00:04.4]} 42... Re8 {[%clk 0:00:06.9]} 43. Qb4
{[%clk 0:00:04.3]} 43... Reh8 {[%clk 0:00:07.1]} 44. Qb3 {[%clk 0:00:03.2]}
44... Qxg4+ {[%clk 0:00:05.3]} 45. Rg3 {[%clk 0:00:01.4]} 45... Qe6 {[%clk
0:00:04.7]} 0-1

[Event "*** Titled Tuesday Blitz"]
[Site "Chess.com"]
[Date "2020.04.14"]
[Round "1"]
[White "Ellaijio_B"]
[Black "Rakesh"]
[Result "1-0"]
[WhiteElo "2729"]
[BlackElo "2379"]
[TimeControl "180+1"]
[EndTime "10:07:43 PDT"]
[Termination "Ellaijio_B won by resignation"]

1. e4 {[%clk 0:03:00.9]} 1... c5 {[%clk 0:02:56.9]} 2. Nf3 {[%clk 0:02:59.8]}
2... e6 {[%clk 0:02:57]} 3. d4 {[%clk 0:03:00.2]} 3... cxd4 {[%clk 0:02:57.9]}
4. Nxd4 {[%clk 0:03:01]} 4... a6 {[%clk 0:02:58.5]} 5. Bd3 {[%clk 0:03:01.4]}
5... Nc6 {[%clk 0:02:58]} 6. Nxc6 {[%clk 0:03:00.8]} 6... dxc6 {[%clk
0:02:58.9]} 7. Nd2 {[%clk 0:02:58.6]} 7... e5 {[%clk 0:02:44.9]} 8. Nc4 {[%clk
0:02:58.4]} 8... Nf6 {[%clk 0:02:45.8]} 9. O-O {[%clk 0:02:56]} 9... Qc7 {[%clk
0:02:45.5]} 10. Be3 {[%clk 0:02:54.4]} 10... b5 {[%clk 0:02:44.9]} 11. Nb6
{[%clk 0:02:53.2]} 11... Rb8 {[%clk 0:02:45.3]} 12. Nxc8 {[%clk 0:02:53.3]}
12... Rxc8 {[%clk 0:02:46.2]} 13. a4 {[%clk 0:02:53]} 13... Bd6 {[%clk
0:02:37.5]} 14. axb5 {[%clk 0:02:50.7]} 14... axb5 {[%clk 0:02:38.4]} 15. Qf3
{[%clk 0:02:50.4]} 15... O-O {[%clk 0:02:38]} 16. Ra7 {[%clk 0:02:44.7]} 16...
Qb8 {[%clk 0:02:38.1]} 17. Rfa1 {[%clk 0:02:44.6]} 17... c5 {[%clk 0:02:32.1]}
18. Bg5 {[%clk 0:02:40.8]} 18... Ne8 {[%clk 0:02:16.2]} 19. c4 {[%clk
0:02:24.1]} 19... b4 {[%clk 0:02:14.2]} 20. Qg3 {[%clk 0:02:10.4]} 20... f6
{[%clk 0:02:10.5]} 21. Be3 {[%clk 0:01:53.1]} 21... Rf7 {[%clk 0:02:04.8]} 22.
Rxf7 {[%clk 0:01:46.1]} 22... Kxf7 {[%clk 0:02:05.7]} 23. Be2 {[%clk 0:01:39.8]}
23... Rc7 {[%clk 0:02:01.5]} 24. Qh3 {[%clk 0:01:25.4]} 24... h6 {[%clk
0:01:53.9]} 25. Bh5+ {[%clk 0:01:18.6]} 25... g6 {[%clk 0:01:52.3]} 26. Bg4
{[%clk 0:01:06.2]} 26... h5 {[%clk 0:01:51.4]} 27. Be6+ {[%clk 0:01:03.6]} 27...
Ke7 {[%clk 0:01:49.8]} 28. Bd5 {[%clk 0:01:00.9]} 28... Qc8 {[%clk 0:01:49.6]}
29. Qg3 {[%clk 0:00:44.5]} 29... Qg4 {[%clk 0:01:44.8]} 30. f3 {[%clk
0:00:37.4]} 30... Qxg3 {[%clk 0:01:44.3]} 31. hxg3 {[%clk 0:00:38.3]} 31... Rd7
{[%clk 0:01:41]} 32. Ra8 {[%clk 0:00:32.3]} 32... Nc7 {[%clk 0:01:38.9]} 33. Ra5
{[%clk 0:00:24.7]} 33... Nxd5 {[%clk 0:01:37]} 34. exd5 {[%clk 0:00:25]} 34...
Rc7 {[%clk 0:01:37.5]} 35. Kf2 {[%clk 0:00:24.7]} 35... f5 {[%clk 0:01:37.8]}
36. Bg5+ {[%clk 0:00:23.5]} 36... Kd7 {[%clk 0:01:35.2]} 37. b3 {[%clk
0:00:23.7]} 37... Rb7 {[%clk 0:01:29.3]} 38. Ra6 {[%clk 0:00:23.6]} 38... Rc7
{[%clk 0:01:28.9]} 39. Ke2 {[%clk 0:00:21.9]} 39... Rb7 {[%clk 0:01:29.1]} 40.
Ke3 {[%clk 0:00:20.3]} 40... Rc7 {[%clk 0:01:29.5]} 41. Kf2 {[%clk 0:00:20.3]}
41... Rb7 {[%clk 0:01:29.7]} 42. Bf6 {[%clk 0:00:19.3]} 42... Rc7 {[%clk
0:01:29.5]} 43. Ke3 {[%clk 0:00:19.7]} 43... Rb7 {[%clk 0:01:29.6]} 44. f4
{[%clk 0:00:20]} 44... exf4+ {[%clk 0:01:04.2]} 45. gxf4 {[%clk 0:00:20.9]}
45... Rb8 {[%clk 0:01:04.3]} 46. Be5 {[%clk 0:00:17.3]} 46... Bxe5 {[%clk
0:00:41.1]} 47. fxe5 {[%clk 0:00:18.2]} 47... g5 {[%clk 0:00:40.4]} 48. Ra7+
{[%clk 0:00:17.5]} 48... Ke8 {[%clk 0:00:39.9]} 49. Rh7 {[%clk 0:00:17.3]} 49...
Rb6 {[%clk 0:00:40.6]} 50. Rxh5 {[%clk 0:00:16.8]} 50... Rg6 {[%clk 0:00:40]}
51. Rh8+ {[%clk 0:00:16]} 51... Kd7 {[%clk 0:00:39.8]} 52. Rh7+ {[%clk
0:00:16.1]} 52... Kd8 {[%clk 0:00:39.9]} 53. e6 {[%clk 0:00:13]} 53... Rh6
{[%clk 0:00:38.5]} 54. Rxh6 {[%clk 0:00:12.4]} 1-0

[Event "*** Titled Tuesday Blitz"]
[Site "Chess.com"]
[Date "2020.04.14"]
[Round "1"]
[White "DinaBelenkaya"]
[Black "DamianoLew95"]
[Result "0-1"]
[WhiteElo "2165"]
[BlackElo "2562"]
[TimeControl "180+1"]
[EndTime "10:07:44 PDT"]
[Termination "DamianoLew95 won on time"]

1. e4 {[%clk 0:03:00.9]} 1... c5 {[%clk 0:02:56.9]} 2. Nc3 {[%clk 0:02:58.9]}
2... Nc6 {[%clk 0:02:56.2]} 3. d3 {[%clk 0:02:55.1]} 3... g6 {[%clk 0:02:52.4]}
4. g3 {[%clk 0:02:55]} 4... Bg7 {[%clk 0:02:52.3]} 5. Nge2 {[%clk 0:02:52.5]}
5... e5 {[%clk 0:02:51.6]} 6. Bg2 {[%clk 0:02:52.4]} 6... Nge7 {[%clk
0:02:51.2]} 7. f4 {[%clk 0:02:51.1]} 7... d6 {[%clk 0:02:49.6]} 8. O-O {[%clk
0:02:48.9]} 8... O-O {[%clk 0:02:48.9]} 9. Be3 {[%clk 0:02:40.3]} 9... b6 {[%clk
0:02:47.9]} 10. Qd2 {[%clk 0:02:39.8]} 10... Rb8 {[%clk 0:02:42.1]} 11. Nd5
{[%clk 0:02:26.8]} 11... Nxd5 {[%clk 0:02:36.8]} 12. exd5 {[%clk 0:02:26.1]}
12... exf4 {[%clk 0:02:18.8]} 13. Bxf4 {[%clk 0:02:17.1]} 13... Nd4 {[%clk
0:02:13.5]} 14. Nc3 {[%clk 0:02:10.1]} 14... f5 {[%clk 0:01:53.4]} 15. Rae1
{[%clk 0:02:08]} 15... Bd7 {[%clk 0:01:51.4]} 16. Bg5 {[%clk 0:02:07.6]} 16...
Bf6 {[%clk 0:01:51.2]} 17. Bxf6 {[%clk 0:02:02.6]} 17... Qxf6 {[%clk 0:01:52.1]}
18. Ne4 {[%clk 0:02:02.1]} 18... Qe7 {[%clk 0:01:41.1]} 19. Nxc5 {[%clk
0:02:01.4]} 19... Qf7 {[%clk 0:01:25.8]} 20. Nxd7 {[%clk 0:01:55.1]} 20... Qxd7
{[%clk 0:01:25.6]} 21. c3 {[%clk 0:01:55.9]} 21... Nb5 {[%clk 0:01:25.1]} 22.
Qg5 {[%clk 0:01:51.7]} 22... Rbe8 {[%clk 0:01:23.2]} 23. Bh3 {[%clk 0:01:38.9]}
23... Qg7 {[%clk 0:01:13.6]} 24. g4 {[%clk 0:01:21.5]} 24... h6 {[%clk
0:01:04.6]} 25. Qd2 {[%clk 0:01:20.4]} 25... fxg4 {[%clk 0:00:59.3]} 26. Rxe8
{[%clk 0:01:08.9]} 26... Rxe8 {[%clk 0:00:59.3]} 27. Bxg4 {[%clk 0:01:09.6]}
27... Nc7 {[%clk 0:00:56.7]} 28. c4 {[%clk 0:01:03.1]} 28... Re5 {[%clk
0:00:53.1]} 29. Qf4 {[%clk 0:00:53.1]} 29... h5 {[%clk 0:00:46.7]} 30. Bh3
{[%clk 0:00:52.9]} 30... Qe7 {[%clk 0:00:43.8]} 31. Qf6 {[%clk 0:00:37.2]} 31...
Qxf6 {[%clk 0:00:32.8]} 32. Rxf6 {[%clk 0:00:38.1]} 32... Rg5+ {[%clk
0:00:33.7]} 33. Kf2 {[%clk 0:00:36.6]} 33... Ne8 {[%clk 0:00:33.5]} 34. Re6
{[%clk 0:00:36.4]} 34... Kf7 {[%clk 0:00:32.8]} 35. Re4 {[%clk 0:00:30.5]} 35...
Nf6 {[%clk 0:00:30.1]} 36. Re6 {[%clk 0:00:27.1]} 36... Ne8 {[%clk 0:00:29.1]}
37. Re3 {[%clk 0:00:26.9]} 37... Nf6 {[%clk 0:00:28.9]} 38. Be6+ {[%clk
0:00:26.6]} 38... Kg7 {[%clk 0:00:28.3]} 39. h4 {[%clk 0:00:27.1]} 39... Ng4+
{[%clk 0:00:26]} 40. Bxg4 {[%clk 0:00:21.4]} 40... Rxg4 {[%clk 0:00:26.9]} 41.
Re4 {[%clk 0:00:19.9]} 41... Rxe4 {[%clk 0:00:23.2]} 42. dxe4 {[%clk 0:00:20.1]}
42... Kf6 {[%clk 0:00:24.1]} 43. Kf3 {[%clk 0:00:19.2]} 43... g5 {[%clk
0:00:24.1]} 44. hxg5+ {[%clk 0:00:18.5]} 44... Kxg5 {[%clk 0:00:25]} 45. b4
{[%clk 0:00:16.8]} 45... h4 {[%clk 0:00:22.1]} 46. a4 {[%clk 0:00:07.3]} 46...
a5 {[%clk 0:00:19]} 47. bxa5 {[%clk 0:00:06.9]} 47... bxa5 {[%clk 0:00:19.9]}
0-1

[Event "*** Titled Tuesday Blitz"]
[Site "Chess.com"]
[Date "2020.04.14"]
[Round "1"]
[White "dusanacns"]
[Black "Egorov_Pavel"]
[Result "1-0"]
[WhiteElo "2783"]
[BlackElo "2411"]
[TimeControl "180+1"]
[EndTime "10:07:46 PDT"]
[Termination "dusanacns won on time"]

1. e4 {[%clk 0:03:00.6]} 1... Nf6 {[%clk 0:03:00]} 2. e5 {[%clk 0:03:00.6]} 2...
Nd5 {[%clk 0:03:00.4]} 3. d4 {[%clk 0:03:01.3]} 3... d6 {[%clk 0:03:00.2]} 4.
Nf3 {[%clk 0:03:02]} 4... g6 {[%clk 0:03:00.3]} 5. Bc4 {[%clk 0:02:53.4]} 5...
Nb6 {[%clk 0:03:00.1]} 6. Bb3 {[%clk 0:02:52.3]} 6... Bg7 {[%clk 0:02:59.8]} 7.
Ng5 {[%clk 0:02:28.6]} 7... e6 {[%clk 0:02:59.6]} 8. f4 {[%clk 0:02:28.1]} 8...
Qe7 {[%clk 0:02:55.5]} 9. c3 {[%clk 0:02:22]} 9... Nc6 {[%clk 0:02:49.6]} 10.
Qe2 {[%clk 0:02:20.7]} 10... Bd7 {[%clk 0:02:46.8]} 11. O-O {[%clk 0:02:15.6]}
11... O-O-O {[%clk 0:02:44.4]} 12. Ne4 {[%clk 0:02:15.9]} 12... h6 {[%clk
0:02:20.6]} 13. a4 {[%clk 0:02:12.8]} 13... a5 {[%clk 0:02:19.2]} 14. Na3 {[%clk
0:02:07.5]} 14... f5 {[%clk 0:02:10.6]} 15. exf6 {[%clk 0:01:59.6]} 15... Bxf6
{[%clk 0:02:10.5]} 16. Nb5 {[%clk 0:01:53.1]} 16... d5 {[%clk 0:01:51.3]} 17.
Nxf6 {[%clk 0:01:42.2]} 17... Qxf6 {[%clk 0:01:52.2]} 18. Bd2 {[%clk 0:01:34.4]}
18... Rhe8 {[%clk 0:01:21.8]} 19. Bc2 {[%clk 0:01:33]} 19... Nc4 {[%clk
0:01:15.3]} 20. Bc1 {[%clk 0:01:29]} 20... Ne7 {[%clk 0:01:07.4]} 21. b3 {[%clk
0:01:24.6]} 21... Nd6 {[%clk 0:00:58.9]} 22. Bd3 {[%clk 0:01:17.6]} 22... Bc6
{[%clk 0:00:40.7]} 23. Ba3 {[%clk 0:01:07.5]} 23... Ne4 {[%clk 0:00:37.9]} 24.
Bxe4 {[%clk 0:01:05.7]} 24... dxe4 {[%clk 0:00:38.8]} 25. Na7+ {[%clk 0:01:06]}
25... Kb8 {[%clk 0:00:38.8]} 26. Bxe7 {[%clk 0:01:02.7]} 26... Rxe7 {[%clk
0:00:36.5]} 27. Nxc6+ {[%clk 0:01:02.3]} 27... bxc6 {[%clk 0:00:37.4]} 28. Qxe4
{[%clk 0:01:02.9]} 28... c5 {[%clk 0:00:25.6]} 29. Rad1 {[%clk 0:00:39.5]} 29...
cxd4 {[%clk 0:00:23]} 30. Qc6 {[%clk 0:00:23.5]} 30... Qf5 {[%clk 0:00:06.7]}
31. cxd4 {[%clk 0:00:17.4]} 31... Qd5 {[%clk 0:00:06.7]} 32. Qc3 {[%clk
0:00:16.4]} 32... Red7 {[%clk 0:00:04.5]} 33. Rfe1 {[%clk 0:00:13.9]} 33... Rd6
{[%clk 0:00:03.6]} 34. h3 {[%clk 0:00:12.7]} 34... Qc6 {[%clk 0:00:01.6]} 35.
Qxa5 {[%clk 0:00:10.7]} 35... Rxd4 {[%clk 0:00:02.3]} 36. Rxd4 {[%clk
0:00:08.6]} 36... Rxd4 {[%clk 0:00:03.2]} 37. Kh2 {[%clk 0:00:07.1]} 37... Rd5
{[%clk 0:00:01.1]} 38. Qb4+ {[%clk 0:00:06.1]} 1-0